bitfinex-derivatives/quotes_SOLF0:USTF0_20251210
["timestamp","ask_amount","ask_price","bid_price","bid_amount"]
[1765344259710,1.08,139.21,139.19,119.0]
[1765344260613,1.1283803,139.21,139.19,119.05496755]
[1765344264809,1.1283803,139.21,139.19,122.13496755]
[1765344268313,0.0483803,139.21,139.2,3.08]
[1765344270017,0.0483803,139.21,139.2,122.08]
[1765344271733,1.08,139.28,139.21,3.21]
[1765344271933,1.08,139.28,139.23,3.21]
[1765344272336,1.13,139.27,139.23,3.21]
[1765344272726,0.0494498,139.26,139.25,3.21]
[1765344273637,6.5117498,139.26,139.25,3.21]
[1765344277035,0.0494498,139.26,139.25,3.21]
[1765344280533,62.21,139.29,139.25,3.21]
[1765344280849,1.13,139.28,139.25,122.21]
[1765344281142,1.13,139.28,139.25,119.0]
[1765344281736,1.17750676,139.28,139.25,119.0]
[1765344281947,1.17750676,139.28,139.25,122.21]
[1765344282440,7.63890676,139.28,139.25,122.21]
[1765344282641,1.13,139.27,139.25,122.21]
[1765344284143,1.13,139.26,139.25,119.0]
[1765344284329,1.13,139.26,139.24,3.2583378]
[1765344284843,6.4618,139.27,139.24,3.2583378]
[1765344285141,7.5918,139.27,139.24,3.2583378]
[1765344287443,1.13,139.26,139.24,3.2583378]
[1765344288536,62.19,139.25,139.24,3.2583378]
[1765344288938,61.06,139.25,139.24,3.2583378]
[1765344289141,61.06,139.25,139.24,0.0483378]
[1765344289142,62.19,139.25,139.24,0.0483378]
[1765344290937,62.19,139.25,139.21,119.0]
[1765344290938,1.13,139.23,139.21,3.21]
[1765344291134,1.13,139.23,139.2,3.21]
[1765344291541,7.5936,139.23,139.2,3.21]
[1765344292047,7.64089382,139.23,139.2,3.26468658]
[1765344293749,0.04729382,139.23,139.2,3.26468658]
[1765344293941,0.04729382,139.23,139.21,3.21]
[1765344295039,0.04729382,139.23,139.21,122.21]
[1765344295240,0.04729382,139.23,139.22,3.21]
[1765344298546,1.13,139.21,139.2,0.00468658]
[1765344298848,1.08,139.2,139.16,3.21]
[1765344299649,1.12961962,139.19,139.17,0.05171943]
[1765344300255,1.08,139.18,139.17,0.05171943]
[1765344300655,1.08,139.18,139.14,3.06]
[1765344300857,1.08,139.16,139.14,3.06]
[1765344301156,61.06,139.16,139.14,3.06]
[1765344301345,62.14,139.16,139.14,3.06]
[1765344301653,62.18651903,139.16,139.14,3.113883]
[1765344301951,1.08,139.14,139.09,3.06]
[1765344302151,1.08,139.12,139.09,3.06]
[1765344302345,61.06,139.11,139.09,3.06]
[1765344303038,61.1146917,139.11,139.09,3.10760083]
[1765344305643,0.0546917,139.11,139.09,3.10760083]
[1765344309356,61.08,139.12,139.11,3.06]
[1765344310463,62.22,139.12,139.09,3.10760083]
[1765344311961,1.14,139.11,139.09,3.10760083]
[1765344315757,61.08,139.12,139.09,3.10760083]
[1765344315957,62.22,139.12,139.09,3.10760083]
[1765344316562,61.08,139.12,139.09,3.10760083]
[1765344316862,62.22,139.12,139.09,3.10760083]
[1765344318050,1.14,139.11,139.09,3.09760083]
[1765344318664,62.22,139.12,139.09,3.09760083]
[1765344318964,61.08,139.12,139.09,3.09760083]
[1765344321765,61.08,139.12,139.09,122.09760083]
[1765344321958,61.08,139.12,139.1,3.05]
[1765344322158,62.29236422,139.13,139.1,3.05]
[1765344326461,68.76066422,139.13,139.1,3.05]
[1765344329670,6.4687,139.12,139.1,3.05]
[1765344330473,7.6087,139.12,139.1,3.05]
[1765344331469,61.15236422,139.13,139.1,3.05]
[1765344333577,61.15236422,139.13,139.11,3.11]
[1765344335473,1.14,139.18,139.12,3.11]
[1765344335679,1.14,139.18,139.13,3.11]
[1765344336481,1.14,139.16,139.14,3.15610215]
[1765344337686,0.04759235,139.17,139.16,3.11]
[1765344338384,6.4638,139.23,139.16,3.11]
[1765344338385,1.14,139.23,139.18,3.11]
[1765344338880,1.14,139.23,139.21,3.11]
[1765344339072,62.29,139.24,139.21,3.11]
[1765344339270,62.34189496,139.24,139.21,3.15847615]
[1765344340771,1.19,139.23,139.21,3.15847615]
[1765344340976,1.19,139.23,139.21,0.04847615]
[1765344355290,1.19,139.22,139.18,119.0]
[1765344355491,1.19,139.22,139.15,122.11]
[1765344355694,1.19,139.19,139.15,119.0]
[1765344355893,1.19,139.18,139.15,119.0]
[1765344356295,1.23708164,139.18,139.15,119.04607145]
[1765344356694,1.23708164,139.18,139.15,122.15607145]
[1765344358394,1.23708164,139.18,139.15,0.04607145]
[1765344359501,1.18,139.17,139.15,0.04607145]
[1765344372016,7.6464,139.17,139.15,0.04607145]
[1765344372213,1.19,139.16,139.15,0.04607145]
[1765344378219,62.27,139.16,139.15,0.04607145]
[1765344381926,62.29,139.16,139.15,0.04607145]
[1765344389327,63.98621475,139.16,139.15,0.04607145]
[1765344389519,69.24676051,139.16,139.15,0.04607145]
[1765344390331,69.24676051,139.16,139.1,119.0]
[1765344390526,1.19,139.14,139.1,122.15]
[1765344391431,1.24488675,139.13,139.11,0.04561069]
[1765344391731,61.1,139.12,139.11,0.04561069]
[1765344392327,61.1,139.12,139.11,3.19561069]
[1765344394821,62.29,139.12,139.11,3.19561069]
[1765344396726,1.19,139.11,139.06,3.15]
[1765344396919,1.19,139.1,139.07,3.15]
[1765344397730,1.24375756,139.1,139.07,3.20313884]
[1765344401532,62.34375756,139.1,139.07,3.20313884]
[1765344401931,1.19,139.09,139.07,119.55135091]
[1765344402321,62.34375756,139.1,139.08,3.15]
[1765344403033,1.24375756,139.1,139.08,3.15]
[1765344407928,1.24375756,139.1,139.08,119.49821207]
[1765344408838,1.24375756,139.1,139.09,3.15]
[1765344409336,1.24375756,139.1,139.08,119.49821207]
[1765344413742,1.24375756,139.1,139.07,0.05313884]
[1765344413743,1.19,139.08,139.07,0.05313884]
[1765344416242,1.19,139.06,139.03,3.15]
[1765344416434,62.31,139.06,139.04,3.15]
[1765344417039,62.35869818,139.06,139.04,3.15]
[1765344419447,1.19,139.05,139.03,119.37821207]
[1765344422831,1.19,139.05,139.04,3.03]
[1765344423038,62.35869818,139.06,139.04,3.03]
[1765344424443,1.19,139.05,139.04,3.03]
[1765344428647,61.16869818,139.06,139.04,3.03]
[1765344430150,61.16869818,139.06,139.05,3.03]
[1765344430851,7.6494,139.11,139.06,3.13]
[1765344431052,68.7894,139.11,139.07,3.13]
[1765344431844,0.05047429,139.1,139.08,3.17681321]
[1765344433451,61.14,139.11,139.09,3.13]
[1765344433642,61.14,139.11,139.1,3.13]
[1765344436257,62.38,139.11,139.09,116.34821207]
[1765344436466,1.24,139.1,139.09,116.34821207]
[1765344436763,1.24,139.1,139.08,0.04681321]
[1765344436961,1.24,139.1,139.08,3.17681321]
[1765344437559,2.93621475,139.1,139.08,0.04681321]
[1765344437855,1.24,139.09,139.08,0.04681321]
[1765344438158,1.24,139.1,139.08,3.17681321]
[1765344439063,62.38,139.11,139.08,3.17681321]
[1765344439757,61.14,139.11,139.08,3.17681321]
[1765344440559,1.24,139.1,139.08,119.52502528]
[1765344441870,61.14,139.11,139.09,3.13]
[1765344444965,62.38,139.11,139.09,3.13]
[1765344446574,1.24,139.1,139.08,119.52502528]
[1765344449575,62.38,139.11,139.09,3.28]
[1765344450170,1.24,139.1,139.08,119.67502528]
[1765344451870,61.14,139.11,139.09,3.28]
[1765344453368,61.16556493,139.12,139.09,3.28]
[1765344453974,62.40556493,139.12,139.09,3.28]
[1765344458373,62.40556493,139.12,139.09,119.62821207]
[1765344460179,62.40556493,139.12,139.1,3.28]
[1765344460382,62.40556493,139.12,139.1,119.62821207]
[1765344461580,62.40556493,139.12,139.11,3.28]
[1765344461581,61.16556493,139.12,139.11,3.28]
[1765344461783,62.40556493,139.12,139.11,3.28]
[1765344462182,61.16556493,139.12,139.11,119.62821207]
[1765344469198,0.04556493,139.12,139.11,119.62821207]
[1765344482101,0.04556493,139.12,139.1,6.4695]
[1765344482102,1.28556493,139.12,139.1,119.40821207]
[1765344482904,1.28556493,139.12,139.11,3.06]
[1765344483201,1.28556493,139.12,139.1,119.40821207]
[1765344487306,1.28556493,139.12,139.1,116.34821207]
[1765344489201,1.28556493,139.12,139.08,0.04681321]
[1765344489401,1.24,139.1,139.08,0.04681321]
[1765344489605,6.61905664,139.09,139.08,0.04681321]
[1765344493011,1.24,139.09,139.08,0.04681321]
[1765344493408,62.36,139.09,139.08,0.04681321]
[1765344502521,1.19,139.08,139.05,116.34821207]
[1765344502819,1.19,139.08,139.02,3.12]
[1765344503003,1.19,139.08,139.02,119.46821207]
[1765344503207,1.19,139.08,139.03,3.12]
[1765344503410,1.19,139.08,139.05,3.12]
[1765344503411,0.04942008,139.07,139.05,3.12]
[1765344503622,0.04942008,139.07,139.06,3.12]
[1765344504727,0.04942008,139.07,139.06,119.46821207]
[1765344510627,1.23942008,139.07,139.06,116.34821207]
[1765344511926,0.04942008,139.07,139.06,119.34821207]
[1765344520732,0.04942008,139.07,139.06,3.0]
[1765344520918,1.23942008,139.07,139.04,119.4011649]
[1765344521122,1.23942008,139.07,139.05,3.0]
[1765344521617,0.04942008,139.07,139.05,3.0]
[1765344526638,0.04942008,139.07,139.05,119.34821207]
[1765344526943,0.04942008,139.07,139.06,3.0]
[1765344532153,14.30087818,139.12,139.07,3.0]
[1765344532452,10.41326212,139.11,139.08,3.0]
[1765344532647,5.51494753,139.1,139.08,3.0]
[1765344532849,5.51494753,139.09,139.08,3.0]
[1765344533040,5.51494753,139.09,139.08,119.34821207]
[1765344538551,5.51494753,139.09,139.08,3.0]
[1765344540750,6.75494753,139.09,139.07,3.30652179]
[1765344540950,6.7579967,139.08,139.07,0.04652179]
[1765344541350,6.7579967,139.08,139.07,3.30652179]
[1765344541943,6.7579967,139.08,139.07,0.04652179]
[1765344545056,11.65999628,139.08,139.07,0.04652179]
[1765344545648,6.7579967,139.08,139.07,0.04652179]
[1765344546151,67.8779967,139.08,139.07,0.04652179]
[1765344549852,69.57575438,139.08,139.07,0.04652179]
[1765344551261,74.48201201,139.08,139.07,0.04652179]
[1765344551460,1.24,139.07,139.04,3.33]
[1765344551662,5.5179967,139.06,139.04,122.33]
[1765344551861,1.24,139.07,139.04,122.33]
[1765344552166,5.50709259,139.06,139.04,122.33]
[1765344552465,0.04719634,139.06,139.04,122.37683113]
[1765344553263,0.04719634,139.06,139.05,3.33]
[1765344553561,5.55363969,139.06,139.05,3.33]
[1765344553961,6.79363969,139.06,139.04,122.37683113]
[1765344554263,1.28719634,139.06,139.04,122.37683113]
[1765344554852,1.28719634,139.06,139.05,3.33]
[1765344555054,6.79305129,139.06,139.04,119.04683113]
[1765344555254,1.28719634,139.06,139.04,122.37683113]
[1765344556658,0.04719634,139.06,139.05,3.33]
[1765344556961,5.55215022,139.06,139.05,3.33]
[1765344557561,5.55215022,139.06,139.04,119.04683113]
[1765344557562,6.79215022,139.06,139.04,3.37683113]
[1765344557757,1.24,139.05,139.04,0.04683113]
[1765344559761,6.74348534,139.05,139.04,0.04683113]
[1765344562666,6.74348534,139.05,138.92,433.88443695]
[1765344562667,1.5,139.03,138.97,119.0]
[1765344562970,1.5,139.01,138.97,119.0]
[1765344563163,6.4745,139.0,138.93,6.4773]
[1765344563361,7.9745,139.0,138.94,1.69775768]
[1765344563668,7.9745,139.0,138.96,0.02103722]
[1765344563669,0.05444462,138.98,138.96,0.02103722]
[1765344564664,0.05444462,138.98,138.97,3.33]
[1765344568069,1.55444462,138.98,138.96,0.02103722]
[1765344568474,62.66,138.97,138.96,0.02103722]
[1765344576675,1.48,138.93,138.9,3.06]
[1765344576881,163.3368,138.97,138.9,3.06]
[1765344576882,61.16,138.92,138.9,3.06]
[1765344577087,61.16,138.91,138.9,3.06]
[1765344577589,57.83,138.91,138.9,122.06]
[1765344577987,0.05218438,138.92,138.91,3.06]
[1765344583088,0.05218438,138.92,138.91,122.06]
[1765344585399,3.30218438,138.92,138.91,119.0]
[1765344585595,0.05218438,138.92,138.91,122.06]
[1765344602111,9.7965,138.96,138.92,3.23]
[1765344602296,9.7965,138.96,138.93,3.23]
[1765344602501,6.4765,138.96,138.93,3.23]
[1765344603106,6.52351171,138.96,138.93,3.28150593]
[1765344604503,0.04701171,138.96,138.93,3.28150593]
[1765344604703,0.04701171,138.96,138.93,122.28150593]
[1765344605010,0.04701171,138.96,138.94,3.23]
[1765344607813,3.36701171,138.96,138.94,3.23]
[1765344608306,0.04701171,138.96,138.94,3.23]
[1765344609300,3.32,138.95,138.93,0.05150593]
[1765344609508,64.5,138.94,138.93,0.05150593]
[1765344610606,69.9709966,138.94,138.93,0.05150593]
[1765344610908,3.05,138.93,138.88,3.27]
[1765344611114,3.05,138.91,138.88,122.27]
[1765344611410,3.05,138.91,138.84,3.27]
[1765344611612,8.51877651,138.9,138.84,3.27]
[1765344611811,70.7095,138.89,138.84,3.27]
[1765344611999,0.04652859,138.88,138.84,3.27]
[1765344613207,9.57652859,138.88,138.84,3.27]
[1765344613414,3.05,138.87,138.84,3.27]
[1765344613608,9.57652859,138.88,138.84,3.27]
[1765344614216,3.05,138.87,138.84,3.27]
[1765344615310,9.57652859,138.88,138.84,3.27]
[1765344615515,64.25,138.87,138.84,3.27]
[1765344615716,3.05,138.86,138.84,3.27]
[1765344616613,64.25,138.87,138.84,3.27]
[1765344617215,70.7306,138.87,138.84,3.27]
[1765344618118,3.05,138.86,138.84,3.27]
[1765344618819,3.05,138.86,138.84,122.27]
[1765344619924,3.05,138.86,138.82,3.27]
[1765344620118,3.10484567,138.85,138.82,3.27]
[1765344621019,3.05,138.84,138.79,3.27]
[1765344621321,100.804,138.88,138.79,3.27]
[1765344621322,61.25453429,138.83,138.79,3.27]
[1765344623025,0.05453429,138.83,138.79,3.27]
[1765344623220,61.22,138.82,138.79,3.27]
[1765344625221,67.703,138.82,138.79,3.27]
[1765344626431,6.4833,138.81,138.79,3.27]
[1765344627828,6.4833,138.81,138.77,3.27]
[1765344627829,9.5342,138.79,138.77,3.27]
[1765344628032,61.22,138.78,138.77,122.27]
[1765344629229,61.22,138.78,138.77,119.0]
[1765344629230,64.43,138.78,138.77,119.0]
[1765344629428,3.21,138.77,138.74,122.32]
[1765344629743,61.22,138.78,138.75,3.32]
[1765344630229,64.43,138.78,138.75,3.32]
[1765344630430,0.05119227,138.79,138.75,3.32]
[1765344630621,61.24,138.78,138.75,3.32]
[1765344631026,61.24,138.78,138.75,9.8058]
[1765344631227,61.24,138.78,138.76,3.32]
[1765344632025,64.45,138.78,138.76,3.32]
[1765344634329,1.75648483,138.79,138.76,119.0]
[1765344634535,61.24,138.78,138.76,122.32]
[1765344635236,64.45,138.78,138.76,122.32]
[1765344638733,3.21,138.77,138.76,119.0]
[1765344639233,3.21,138.77,138.72,119.0]
[1765344639430,4.96118693,138.76,138.73,3.32]
[1765344639633,3.21,138.75,138.73,3.32]
[1765344640133,3.21,138.75,138.72,122.32]
[1765344640338,3.21,138.73,138.7,122.32]
[1765344640643,3.21,138.73,138.7,3.32]
[1765344640644,3.26375096,138.73,138.7,3.32]
[1765344641022,0.05375096,138.73,138.7,3.32]
[1765344642038,3.26375096,138.73,138.7,3.32]
[1765344643139,3.26375096,138.73,138.66,6.4898]
[1765344643443,3.26375096,138.73,138.69,3.32]
[1765344643444,0.05375096,138.73,138.69,3.32]
[1765344643644,0.05375096,138.73,138.71,3.32]
[1765344645343,3.21,138.79,138.73,3.32]
[1765344645536,3.21,138.79,138.75,3.32]
[1765344646344,0.04876368,138.78,138.76,3.37079705]
[1765344646643,3.25876368,138.78,138.76,3.37079705]
[1765344647837,9.74336368,138.78,138.76,0.05079705]
[1765344648039,3.21,138.77,138.76,0.05079705]
[1765344651753,3.21,138.75,138.71,3.32]
[1765344652050,3.14529256,138.77,138.7,1.70529256]
[1765344652051,3.21,138.73,138.7,5.02529256]
[1765344652246,3.21,138.73,138.7,3.32]
[1765344652647,3.2579565,138.73,138.7,3.32]
[1765344653049,3.21,138.72,138.69,5.02529256]
[1765344653247,3.21,138.72,138.69,3.32]
[1765344655161,9.6975,138.72,138.69,3.32]
[1765344656261,3.21,138.7,138.67,3.29175725]
[1765344656454,64.49,138.69,138.67,6.61175725]
[1765344657866,64.49,138.69,138.67,3.29175725]
[1765344658258,70.9789,138.69,138.67,3.29175725]
[1765344659060,6.4899,138.67,138.63,3.32]
[1765344659265,0.05329191,138.66,138.63,3.32]
[1765344659763,61.33329191,138.66,138.63,3.32]
[1765344660957,0.05329191,138.66,138.65,3.15]
[1765344661164,3.36329191,138.66,138.63,3.15]
[1765344661865,0.05329191,138.66,138.63,4.85529256]
[1765344662059,0.05329191,138.66,138.64,3.15]
[1765344664568,0.05329191,138.66,138.65,4.85529256]
[1765344664867,0.05329191,138.66,138.65,123.85529256]
[1765344666355,64.61,138.71,138.67,3.15]
[1765344666557,64.61,138.71,138.68,3.15]
[1765344667359,64.66127863,138.71,138.68,3.19855878]
[1765344671274,4.79529256,138.69,138.68,0.04855878]
[1765344676382,3.09,138.69,138.68,0.04855878]
[1765344676871,64.39,138.7,138.68,0.04855878]
[1765344679373,61.3,138.7,138.68,122.28855878]
[1765344679577,61.3,138.7,138.69,3.24]
[1765344681879,61.3,138.7,138.68,0.04855878]
[1765344681880,3.09,138.69,138.68,0.04855878]
[1765344682087,4.79529256,138.69,138.68,0.04855878]
[1765344684381,3.09,138.69,138.68,0.04855878]
[1765344684582,4.79529256,138.69,138.68,0.04855878]
[1765344687577,3.09,138.69,138.68,0.04855878]
[1765344687779,4.79529256,138.69,138.68,0.04855878]
[1765344689181,3.09,138.69,138.68,0.04855878]
[1765344689380,61.3,138.7,138.68,3.13855878]
[1765344691587,64.32,138.7,138.68,3.13855878]
[1765344693083,64.32,138.7,138.68,122.13855878]
[1765344697186,3.02,138.69,138.68,119.04855878]
[1765344697381,13.83854834,138.69,138.68,119.04855878]
[1765344698181,13.8487889,138.69,138.68,119.04855878]
[1765344698892,13.8487889,138.69,138.68,0.04855878]
[1765344702800,13.81028016,138.69,138.68,0.04855878]
[1765344704703,3.07127863,138.71,138.68,3.13855878]
[1765344707797,3.07127863,138.71,138.68,122.13855878]
[1765344709597,3.07127863,138.71,138.68,119.04855878]
[1765344709803,13.80850756,138.7,138.68,0.04855878]
[1765344710097,3.02,138.7,138.68,0.04855878]
[1765344710596,9.5085,138.7,138.68,0.04855878]
[1765344710992,3.02,138.69,138.68,0.04855878]
[1765344714407,13.81383765,138.69,138.68,0.04855878]
[1765344716201,3.02,138.69,138.68,0.04855878]
[1765344716406,64.32,138.69,138.68,0.04855878]
[1765344718709,61.3,138.69,138.68,3.13855878]
[1765344719811,61.3,138.69,138.68,122.13855878]
[1765344720908,64.63127863,138.71,138.69,3.14]
[1765344721115,14.07812131,138.7,138.68,122.18855878]
[1765344721307,5.5159774,138.69,138.68,122.18855878]
[1765344722214,5.5159774,138.69,138.68,119.04855878]
[1765344722716,3.28,138.7,138.68,122.18855878]
[1765344722912,3.33127863,138.71,138.69,3.14]
[1765344723217,5.51656247,138.7,138.69,3.14]
[1765344723619,64.63127863,138.71,138.69,3.14]
[1765344724114,3.33127863,138.71,138.69,3.14]
[1765344724417,5.51639975,138.7,138.69,3.14]
[1765344725010,64.63127863,138.71,138.69,3.14]
[1765344725321,3.28,138.7,138.68,122.18855878]
[1765344726922,14.04413116,138.69,138.68,119.04855878]
[1765344730013,14.04413116,138.69,138.68,119.0]
[1765344730322,9.7401,138.66,138.65,108.20815878]
[1765344730520,3.25,138.65,138.59,3.27]
[1765344730711,72.09413116,138.66,138.6,3.27]
[1765344730712,14.06326542,138.64,138.6,3.27]
[1765344730908,3.25,138.64,138.6,3.27]
[1765344731112,0.0498029,138.63,138.6,3.27]
[1765344732713,3.25,138.62,138.58,3.27]
[1765344732919,64.55,138.62,138.58,3.27]
[1765344733118,61.3,138.62,138.58,3.27]
[1765344733821,0.0498029,138.63,138.58,3.27]
[1765344735221,61.3,138.67,138.61,3.27]
[1765344735420,61.3,138.67,138.62,3.27]
[1765344736012,0.04753258,138.66,138.64,3.27]
[1765344740337,3.29753258,138.66,138.63,111.52521365]
[1765344741021,0.04753258,138.66,138.64,3.27]
[1765344741223,3.29753258,138.66,138.63,0.04705487]
[1765344741421,3.29753258,138.66,138.63,3.31705487]
[1765344741614,0.04753258,138.66,138.63,3.31705487]
[1765344744430,0.04753258,138.66,138.63,9.80835487]
[1765344744623,0.04753258,138.66,138.64,3.27]
[1765344746434,0.04753258,138.66,138.64,111.47815878]
[1765344746634,0.04753258,138.66,138.65,3.27]
[1765344748734,0.04753258,138.66,138.65,111.47815878]
[1765344749236,3.32,138.74,138.66,3.26]
[1765344749446,10.74398696,138.73,138.66,3.26]
[1765344749740,71.1266,138.74,138.66,3.26]
[1765344749935,10.74353614,138.73,138.66,3.26]
[1765344750135,10.74353614,138.73,138.65,114.69855878]
[1765344750136,0.05022246,138.71,138.69,3.26]
[1765344751141,3.37022246,138.71,138.68,111.51646687]
[1765344752743,3.32,138.7,138.68,108.25646687]
[1765344753045,3.32,138.69,138.68,108.25646687]
[1765344754533,64.62,138.69,138.68,108.25646687]
[1765344755356,64.62,138.69,138.68,0.04830809]
[1765344755649,3.32,138.69,138.68,0.04830809]
[1765344755832,64.62,138.69,138.68,0.04830809]
[1765344756248,8.19543422,138.7,138.68,0.04830809]
[1765344756451,64.62,138.69,138.68,0.04830809]
[1765344758848,11.51543422,138.7,138.68,3.30830809]
[1765344759051,61.3,138.69,138.68,3.30830809]
[1765344759654,61.3,138.69,138.68,0.04830809]
[1765344760042,64.62,138.69,138.68,0.04830809]
[1765344761647,77.12039501,138.69,138.68,0.04830809]
[1765344765749,10.79336079,138.69,138.68,0.04830809]
[1765344765957,61.3,138.69,138.68,0.04830809]
[1765344766548,64.62,138.69,138.68,0.04830809]
[1765344767756,71.80646346,138.69,138.68,0.04830809]
[1765344770858,10.50646346,138.69,138.68,0.04830809]
[1765344771056,71.80646346,138.69,138.68,0.04830809]
[1765344777364,76.97171722,138.69,138.68,0.04830809]
[1765344778456,15.67171722,138.69,138.68,0.04830809]
[1765344778763,76.97171722,138.69,138.68,0.04830809]
[1765344780762,15.67171722,138.69,138.68,0.04830809]
[1765344781266,75.264683,138.69,138.68,0.04830809]
[1765344781866,13.964683,138.69,138.68,0.04830809]
[1765344782067,75.264683,138.69,138.68,0.04830809]
[1765344782459,13.964683,138.69,138.68,0.04830809]
[1765344782766,75.264683,138.69,138.68,0.04830809]
[1765344800580,69.95942924,138.69,138.68,3.06830809]
[1765344800782,69.95942924,138.69,138.68,0.04830809]
[1765344805288,74.88593519,138.69,138.68,0.04830809]
[1765344807892,69.95942924,138.69,138.68,0.04830809]
[1765344811593,74.89377591,138.69,138.68,0.04830809]
[1765344813292,13.59377591,138.69,138.68,0.04830809]
[1765344813592,74.89377591,138.69,138.68,0.04830809]
[1765344813787,13.59377591,138.69,138.68,0.04830809]
[1765344814190,74.89377591,138.69,138.68,0.04830809]
[1765344814793,13.59377591,138.69,138.68,0.04830809]
[1765344815088,74.89377591,138.69,138.68,0.04830809]
[1765344817391,69.95942924,138.69,138.68,0.04830809]
[1765344818494,8.65942924,138.69,138.68,0.04830809]
[1765344818691,69.95942924,138.69,138.68,0.04830809]
[1765344820996,8.65942924,138.69,138.68,0.04830809]
[1765344821198,69.95942924,138.69,138.68,0.04830809]
[1765344821601,8.65942924,138.69,138.68,0.04830809]
[1765344821788,69.95942924,138.69,138.68,0.04830809]
[1765344823093,66.77942924,138.69,138.68,3.20830809]
[1765344823300,69.89942924,138.69,138.68,3.20830809]
[1765344823494,69.89942924,138.69,138.68,0.04830809]
[1765344827406,66.77942924,138.69,138.68,3.20830809]
[1765344827606,61.3,138.7,138.69,3.16]
[1765344829913,64.42,138.7,138.69,3.16]
[1765344830111,64.42,138.7,138.68,117.90556687]
[1765344830924,3.12,138.69,138.68,114.74556687]
[1765344831321,64.42,138.7,138.68,117.90556687]
[1765344832819,64.42,138.7,138.68,9.69740809]
[1765344834922,3.12,138.69,138.68,0.04830809]
[1765344835224,8.64011456,138.69,138.68,0.04830809]
[1765344841626,8.64011456,138.69,138.64,9.5807]
[1765344841627,3.03,138.68,138.64,9.5807]
[1765344841827,3.03,138.66,138.64,9.5807]
[1765344842423,3.03,138.66,138.63,3.09]
[1765344842621,3.07590304,138.66,138.64,3.1453896]
[1765344842925,0.04590304,138.66,138.64,9.6362896]
[1765344843125,3.03,138.7,138.65,3.09]
[1765344843427,5.53383036,138.69,138.65,3.09]
[1765344843629,64.33,138.7,138.66,6.49]
[1765344843832,64.33,138.7,138.67,3.09]
[1765344844228,64.37884255,138.7,138.67,3.14423907]
[1765344845732,0.04884255,138.7,138.68,3.09]
[1765344846324,0.04884255,138.7,138.69,3.09]
[1765344847026,64.47,138.74,138.69,4.53]
[1765344847226,64.47,138.74,138.7,3.3]
[1765344848031,3.22206268,138.73,138.71,3.34818288]
[1765344849121,0.05206268,138.73,138.71,3.34818288]
[1765344849526,3.22206268,138.73,138.71,3.34818288]
[1765344857734,3.22206268,138.73,138.71,0.04818288]
[1765344857929,3.17,138.72,138.71,0.04818288]
[1765344858123,3.17,138.71,138.64,3.3]
[1765344858433,3.17,138.69,138.64,3.3]
[1765344858837,3.17,138.69,138.64,6.4908]
[1765344859134,3.17,138.67,138.65,0.0458162]
[1765344860639,3.17,138.67,138.65,3.3458162]
[1765344866237,3.17,138.67,138.65,0.0458162]
[1765344871748,3.23,138.66,138.65,0.0458162]
[1765344873345,3.23,138.66,138.6,3.08]
[1765344873542,63.96846693,138.67,138.6,3.08]
[1765344873543,3.23,138.65,138.6,3.08]
[1765344874444,63.96846693,138.67,138.6,3.08]
[1765344874445,3.23,138.63,138.61,0.05195634]
[1765344877049,4.99112043,138.64,138.61,3.13195634]
[1765344877250,3.23,138.63,138.61,3.13195634]
[1765344877650,3.28175597,138.64,138.61,3.13195634]
[1765344877848,0.05175597,138.64,138.61,3.13195634]
[1765344878246,0.05175597,138.64,138.61,9.62425634]
[1765344878450,0.05175597,138.64,138.62,3.08]